bitfinex/quotes_SOLUSD_20240813
["timestamp","ask_amount","ask_price","bid_price","bid_amount"]
[1723572556226,6.76,147.93,147.8,9.84]
[1723572556442,9.84,147.9,147.8,9.84]
[1723572556750,65.0,147.89,147.8,9.84]
[1723572557065,9.84,147.88,147.8,9.84]
[1723572557371,9.84,147.88,147.8,9.96549]
[1723572557829,20.0,147.89,147.82,10.09098]
[1723572558033,20.0,147.89,147.83,0.12549]
[1723572558657,20.0,147.89,147.82,0.25098]
[1723572558845,9.84,147.88,147.82,0.25098]
[1723572559049,9.84,147.88,147.82,0.12549]
[1723572559656,9.84,147.88,147.81,0.8335754]
[1723572559857,45.0,147.87,147.81,0.8335754]
[1723572560238,9.84,147.86,147.81,0.8335754]
[1723572560432,9.84,147.84,147.81,0.8335754]
[1723572561630,15.1937,147.87,147.81,0.8335754]
[1723572561830,74.84,147.86,147.81,0.8335754]
[1723572562078,20.0,147.86,147.81,0.8335754]
[1723572562377,25.4471,147.91,147.82,6.72368]
[1723572562533,260.3,147.95,147.84,0.12549]
[1723572562534,15.6071,147.95,147.84,0.12549]
[1723572562735,9.84,147.93,147.84,0.25098]
[1723572562962,9.84,147.93,147.83,55.09098]
[1723572562963,9.84,147.91,147.83,0.25098]
[1723572563638,9.84,147.91,147.83,10.09098]
[1723572564498,9.84,147.91,147.84,0.12549]
[1723572564669,9.84,147.93,147.85,10.3619]
[1723572565001,20.0,147.92,147.86,0.25098]
[1723572565671,20.0,147.92,147.86,0.12549]
[1723572565879,20.0,147.92,147.86,0.25098]
[1723572566298,20.0,147.92,147.86,0.12549]
[1723572567312,20.0,147.92,147.85,10.3619]
[1723572567786,20.0,147.92,147.86,0.12549]
[1723572568797,9.84,147.89,147.81,0.8335754]
[1723572571077,9.84,147.87,147.81,0.8335754]
[1723572571412,9.84,147.85,147.81,0.8335754]
[1723572572200,9.84,147.87,147.81,0.8335754]
[1723572573798,45.0,147.86,147.81,0.8335754]
[1723572574179,9.84,147.85,147.81,0.8335754]
[1723572576219,9.84,147.83,147.81,0.8335754]
[1723572577374,9.84,147.85,147.81,0.8335754]
[1723572579006,45.0,147.86,147.81,0.8335754]
[1723572579007,9.84,147.83,147.81,0.8335754]
[1723572583476,45.0,147.82,147.81,0.8335754]
[1723572583682,65.0,147.82,147.81,0.8335754]
[1723572586685,9.84,147.83,147.81,0.8335754]
[1723572587286,29.61979436,147.88,147.81,0.8335754]
[1723572587499,9.84,147.86,147.81,0.8335754]
[1723572587806,20.0,147.85,147.81,0.8335754]
[1723572589589,54.84,147.84,147.81,0.8335754]
[1723572590688,9.84,147.84,147.81,0.8335754]
[1723572590985,20.0,147.85,147.81,0.8335754]
[1723572594515,9.84,147.84,147.81,0.8335754]
[1723572596432,20.0,147.85,147.81,0.8335754]
[1723572596601,20.0,147.87,147.81,0.8335754]
[1723572596912,32.4506,147.88,147.81,0.8335754]
[1723572597091,9.84,147.86,147.81,0.8335754]
[1723572597738,16.6032,147.86,147.81,0.8335754]
[1723572598232,9.84,147.84,147.81,0.8335754]
[1723572598625,7.00723506,147.9,147.81,0.8335754]
[1723572598831,9.84,147.88,147.81,0.8335754]
[1723572599025,20.0,147.87,147.81,0.8335754]
[1723572600334,9.84,147.86,147.81,0.8335754]
[1723572600528,20.0,147.87,147.81,0.8335754]
[1723572600738,9.84,147.88,147.81,0.8335754]
[1723572600933,20.0,147.87,147.81,0.8335754]
[1723572601321,20.0,147.89,147.82,0.37647]
[1723572601528,9.84,147.9,147.82,0.37647]
[1723572602434,260.3,147.93,147.83,9.84]
[1723572602738,9.84,147.9,147.82,0.12549]
[1723572603238,9.84,147.9,147.82,0.37647]
[1723572603416,9.84,147.9,147.83,0.12549]
[1723572603615,9.84,147.92,147.83,0.37647]
[1723572603819,9.84,147.92,147.83,0.25098]
[1723572604243,20.0,147.91,147.83,0.25098]
[1723572605233,20.0,147.91,147.84,0.12549]
[1723572605422,20.0,147.91,147.84,0.25098]
[1723572605743,20.0,147.91,147.85,0.25098]
[1723572606334,9.84,147.9,147.82,9.84]
[1723572606645,9.84,147.9,147.83,0.50196]
[1723572608029,20.0,147.91,147.83,0.50196]
[1723572608237,20.0,147.93,147.84,20.0]
[1723572608429,45.0,147.92,147.85,0.25098]
[1723572608742,45.0,147.92,147.83,0.50196]
[1723572609943,20.0,147.93,147.84,9.84]
[1723572610129,9.84,147.93,147.85,0.50196]
[1723572610326,20.0,147.92,147.85,0.37647]
[1723572610842,20.0,147.92,147.85,0.25098]
[1723572611047,9.84,147.93,147.85,0.25098]
[1723572612536,20.0,147.94,147.86,10.09098]
[1723572612722,20.0,147.94,147.87,0.25098]
[1723572613925,20.0,147.94,147.82,20.0]
[1723572613926,54.84,147.93,147.83,9.96549]
[1723572614135,54.84,147.93,147.84,20.37647]
[1723572614337,20.0,147.94,147.85,9.96549]
[1723572614647,9.84,147.95,147.87,0.12549]
[1723572614846,20.0,147.94,147.87,0.12549]
[1723572615048,9.84,147.93,147.86,0.37647]
[1723572616021,20.0,147.94,147.86,0.37647]
[1723572616637,9.84,147.95,147.86,0.37647]
[1723572616835,20.0,147.94,147.86,0.37647]
[1723572617857,20.0,147.94,147.87,0.12549]
[1723572618742,20.0,147.94,147.87,9.96549]
[1723572618936,20.0,147.94,147.88,0.12549]
[1723572619334,0.12549,147.98,147.88,0.12549]
[1723572619653,9.84,147.97,147.88,0.37647]
[1723572619855,9.84,147.95,147.88,0.25098]
[1723572620156,9.84,147.95,147.88,0.12549]
[1723572620459,45.0,147.96,147.88,0.37647]
[1723572620656,20.0,147.95,147.88,0.37647]
[1723572621143,20.0,147.95,147.88,0.25098]
[1723572621340,9.84,147.93,147.82,40.0]
[1723572621546,9.84,147.93,147.84,9.84]
[1723572621751,9.84,147.93,147.85,20.12549]
[1723572622427,9.84,147.93,147.86,10.3619]
[1723572622630,9.84,147.93,147.87,0.12549]
[1723572623668,9.84,147.93,147.86,10.3619]
[1723572626229,20.0,147.95,147.87,0.25098]
[1723572626428,9.84,147.94,147.87,0.25098]
[1723572627543,6.238,148.0,147.88,10.09098]
[1723572627735,22.8124,148.01,147.88,10.09098]
[1723572627736,16.056,148.01,147.92,20.2019]
[1723572628063,16.056,148.01,147.93,0.46349]
[1723572628064,9.84,147.99,147.93,0.46349]
[1723572629662,9.84,148.01,147.93,0.46349]
[1723572630769,9.84,147.99,147.93,0.46349]
[1723572631374,9.84,148.01,147.93,10.30349]
[1723572631544,9.84,148.01,147.93,0.46349]
[1723572632152,9.84,147.99,147.93,0.46349]
[1723572632363,9.84,148.02,147.93,0.46349]
[1723572632580,9.84,148.0,147.93,0.46349]
[1723572635379,45.0,148.01,147.93,0.46349]
[1723572635950,45.0,148.01,147.93,10.30349]
[1723572636152,9.84,148.02,147.94,0.25098]
[1723572636481,7.00246137,148.04,147.97,9.84]
[1723572636652,9.84,148.06,147.98,0.12549]
[1723572637377,9.84,148.04,147.96,0.12549]
[1723572637579,9.84,148.04,147.96,0.25098]
[1723572638392,9.84,148.05,147.97,0.12549]
[1723572638581,20.0,148.04,147.97,0.37647]
[1723572639559,20.0,148.04,147.98,10.3619]
[1723572642291,22.85696323,148.08,147.98,10.3619]
[1723572642578,9.84,148.09,147.99,10.21647]
[1723572642753,9.84,148.09,147.99,30.21647]
[1723572642959,16.5927,148.09,147.99,30.21647]
[1723572643157,16.5927,148.09,147.99,10.21647]
[1723572643579,9.84,148.09,147.99,10.21647]
[1723572643780,9.84,148.09,147.99,30.21647]
[1723572644283,9.84,148.09,148.0,6.29519]
[1723572644678,9.84,148.09,148.01,0.25098]
[1723572644985,9.84,148.11,148.02,0.12549]
[1723572645182,9.84,148.11,148.02,0.25098]
[1723572645382,9.84,148.11,148.03,0.25098]
[1723572645694,9.84,148.11,148.04,10.3619]
[1723572646254,20.0,148.1,148.04,10.3619]
[1723572647584,6.10830012,148.15,148.04,30.3619]
[1723572647893,9.84,148.13,148.05,0.25098]
[1723572648078,9.84,148.13,148.04,10.3619]
[1723572648290,9.84,148.13,148.05,0.25098]
[1723572649091,9.84,148.11,148.04,10.3619]
[1723572649796,9.84,148.11,148.05,0.25098]
[1723572650371,9.84,148.12,148.05,0.25098]
[1723572651265,9.84,148.12,148.06,0.12549]
[1723572651495,9.84,148.14,148.06,6.6639]
[1723572651711,20.0,148.13,148.06,6.6639]
[1723572652198,20.0,148.13,148.07,0.12549]
[1723572653182,6.7497,148.16,148.07,0.37647]
[1723572653183,9.84,148.16,148.07,0.37647]
[1723572653382,20.0,148.15,148.07,0.37647]
[1723572653802,9.84,148.14,148.07,0.25098]
[1723572654029,9.84,148.14,148.07,0.12549]
[1723572654999,9.84,148.1,148.06,6.6639]
[1723572657209,9.84,148.08,148.06,6.6639]
[1723572657805,9.84,148.08,148.04,10.3619]
[1723572658012,9.84,148.08,147.99,9.84]
[1723572658439,9.84,148.06,147.96,9.84]
[1723572658605,9.84,148.04,147.93,0.338]
[1723572658808,9.84,148.04,147.94,9.84]
[1723572659542,9.84,148.02,147.94,9.84]
[1723572660104,9.84,148.0,147.93,0.338]
[1723572664147,9.84,148.0,147.94,0.12549]
[1723572664354,9.84,148.02,147.94,0.12549]
[1723572664523,20.0,148.01,147.94,0.25098]
[1723572665220,54.84,148.03,147.95,0.12549]
[1723572665443,9.84,148.03,147.95,0.25098]
[1723572665646,9.84,148.03,147.96,0.12549]
[1723572665846,9.84,148.03,147.96,0.25098]
[1723572666363,9.84,148.01,147.93,0.46349]
[1723572666660,9.84,148.01,147.94,0.25098]
[1723572667055,9.84,147.99,147.94,0.25098]
[1723572667354,9.84,147.99,147.93,0.338]
[1723572668060,9.84,148.01,147.93,0.338]
[1723572668765,9.84,148.01,147.94,0.25098]
[1723572669367,9.84,148.01,147.93,0.338]
[1723572669662,9.84,147.99,147.93,0.338]
[1723572670448,45.0,148.0,147.93,0.338]
[1723572670765,9.84,148.01,147.93,0.338]
[1723572670960,9.84,148.01,147.94,0.25098]
[1723572672245,9.84,148.03,147.94,10.09098]
[1723572672453,9.84,148.05,147.96,9.84]
[1723572672646,9.84,148.05,147.97,0.25098]
[1723572672647,20.0,148.04,147.97,0.25098]
[1723572672968,9.84,148.03,147.94,9.84]
[1723572673146,9.84,148.03,147.93,0.338]
[1723572673147,9.84,148.03,147.93,0.46349]
[1723572673348,9.84,148.03,147.94,0.25098]
[1723572673568,9.84,148.01,147.94,0.25098]
[1723572674550,9.84,148.01,147.94,0.12549]
[1723572675572,20.0,148.04,147.94,0.12549]
[1723572675573,9.84,148.03,147.94,30.09098]
[1723572675873,9.84,148.03,147.95,0.12549]
[1723572676076,20.0,148.04,147.97,0.12549]
[1723572676279,20.0,148.04,147.97,0.50196]
[1723572676658,20.0,148.04,147.97,0.25098]
[1723572676986,9.84,148.03,147.94,9.84]
[1723572677141,9.84,148.03,147.95,0.37647]
[1723572677544,9.84,148.03,147.96,0.12549]
[1723572677972,20.0,148.04,147.96,0.12549]
[1723572678171,20.0,148.05,147.96,0.12549]
[1723572681462,7.05278884,148.07,147.96,0.12549]
[1723572681662,24.57,148.12,148.0,20.12549]
[1723572681976,24.57,148.12,148.02,0.12549]
[1723572682469,24.57,148.12,148.01,0.37647]
[1723572682676,24.57,148.1,148.01,0.25098]
[1723572682854,24.57,148.1,148.01,6.36788]
[1723572683060,24.57,148.1,148.01,16.72978]
[1723572684267,45.0,148.09,148.01,16.72978]
[1723572684972,45.0,148.09,148.01,16.60429]
[1723572685872,24.57,148.1,148.01,16.60429]
[1723572686454,24.57,148.1,148.02,0.12549]
[1723572689077,24.57,148.1,148.01,16.60429]
[1723572689078,45.0,148.09,148.01,16.60429]
[1723572689277,45.12549,148.09,148.01,16.4788]
[1723572689462,45.0,148.09,148.01,16.4788]
[1723572692377,6.7513,148.12,148.01,41.0488]
[1723572692589,20.0,148.11,148.05,10.3619]
[1723572692758,20.0,148.12,148.05,10.3619]
[1723572692963,31.32,148.15,148.05,10.3619]
[1723572694307,20.0,148.14,148.05,10.3619]
[1723572695383,45.0,148.13,148.05,10.3619]
[1723572696119,20.0,148.14,148.07,10.3619]
[1723572696296,26.2802,148.21,148.08,0.25098]
[1723572696297,20.0,148.15,148.08,0.25098]
[1723572696502,20.0,148.17,148.08,20.25098]
[1723572697119,31.3185,148.18,148.08,0.25098]
[1723572697912,9.81,148.17,148.08,0.25098]
[1723572698417,20.0,148.16,148.08,0.25098]
[1723572698623,20.0,148.16,148.07,20.1719]
[1723572698624,9.81,148.13,148.07,10.3619]
[1723572699009,9.81,148.11,148.07,10.3619]
[1723572699907,6.7504,148.14,148.07,10.3619]
[1723572699908,31.2904,148.14,148.07,10.3619]
[1723572700109,65.0,148.13,148.07,10.3619]
[1723572701021,6.7487,148.18,148.08,0.50196]
[1723572701801,6.7481,148.19,148.08,0.50196]
[1723572702035,24.54,148.19,148.08,20.50196]
[1723572702313,16.8671,148.22,148.1,0.12549]
[1723572702314,24.54,148.22,148.1,0.12549]
[1723572702528,31.288,148.2,148.1,0.25098]
[1723572703197,38.33681149,148.22,148.1,0.25098]
[1723572703926,38.33681149,148.22,148.1,1.60105386]
[1723572704533,6.87299,148.21,148.1,0.25098]
[1723572704708,44.54,148.2,148.1,0.25098]
[1723572705223,45.0,148.19,148.1,0.25098]
[1723572705531,45.0,148.19,148.1,1.60104993]
[1723572705897,45.0,148.19,148.1,0.25098]
[1723572709525,24.54,148.18,148.09,16.3692]
[1723572709833,45.0,148.17,148.09,16.3692]
[1723572711134,45.0,148.17,148.1,0.12549]
[1723572713916,24.54,148.16,148.09,16.3692]
[1723572714139,45.0,148.15,148.09,16.3692]
[1723572718706,45.0,148.15,148.09,6.0073]
[1723572719106,24.54,148.16,148.06,0.12549]
[1723572719302,0.12549,148.18,148.08,0.12549]
[1723572719534,0.12549,148.18,148.07,0.37647]
[1723572719535,24.54,148.17,148.07,0.37647]
[1723572719839,65.0,148.16,148.08,0.12549]
[1723572720013,65.0,148.16,148.07,0.12549]
[1723572720014,65.0,148.16,148.07,0.25098]
[1723572720207,65.0,148.16,148.08,0.12549]
[1723572720713,65.0,148.16,148.07,0.25098]
[1723572721710,20.0,148.16,148.08,0.12549]
[1723572722011,7.05418629,148.19,148.08,20.25098]
[1723572722205,7.05418629,148.19,148.09,0.25098]
[1723572722206,20.0,148.18,148.09,0.25098]
[1723572723122,45.0,148.17,148.09,0.25098]
[1723572723322,20.0,148.18,148.09,0.25098]
[1723572723323,20.0,148.18,148.1,0.12549]
[1723572723525,24.54,148.21,148.1,0.25098]
[1723572723722,20.0,148.2,148.11,0.25098]
[1723572723914,24.54,148.21,148.11,0.25098]
[1723572725311,20.0,148.2,148.11,0.25098]
[1723572725721,45.0,148.19,148.11,0.25098]
[1723572726046,7.05196839,148.22,148.11,0.25098]
[1723572726216,31.285,148.26,148.12,24.79098]
[1723572726416,31.5885371,148.26,148.14,0.12549]
[1723572726751,7.0485371,148.26,148.14,66.14065884]
[1723572726909,7.0485371,148.26,148.16,0.12549]
[1723572727227,7.0485371,148.26,148.16,0.25098]
[1723572727431,38.3335371,148.26,148.15,0.25098]
[1723572727635,31.5885371,148.26,148.15,0.25098]
[1723572727837,24.54,148.24,148.15,0.25098]
[1723572728025,24.54,148.24,148.14,0.25098]
[1723572728216,20.0,148.23,148.14,0.25098]
[1723572729420,20.0,148.23,148.15,0.25098]
[1723572729621,20.0,148.25,148.16,0.25098]
[1723572730325,26.7454,148.25,148.16,0.25098]
[1723572730636,31.2858,148.24,148.16,0.25098]
[1723572730825,20.0,148.23,148.16,0.25098]
[1723572732214,20.0,148.23,148.16,1.60064545]
[1723572732441,31.5885371,148.26,148.16,0.25098]
[1723572732442,20.0,148.25,148.16,0.25098]
[1723572732962,69.54,148.24,148.16,0.25098]
[1723572733962,26.7455,148.25,148.16,0.25098]
[1723572733963,20.0,148.25,148.16,0.25098]
[1723572734175,7.0485371,148.26,148.18,0.12549]
[1723572734336,24.54,148.3,148.18,46.7257233]
[1723572734537,24.54,148.3,148.19,0.12549]
[1723572734770,24.54,148.3,148.2,0.12549]
[1723572734936,24.54,148.3,148.2,0.37647]
[1723572736161,24.54,148.28,148.2,0.25098]
[1723572736469,24.54,148.28,148.2,0.12549]
[1723572736699,24.54,148.28,148.19,0.25098]
[1723572737050,24.54,148.28,148.18,0.25098]
[1723572737349,0.8335754,148.32,148.19,0.25098]
[1723572737350,24.54,148.3,148.19,0.25098]
[1723572737540,24.54,148.3,148.2,0.25098]
[1723572737745,20.12549,148.29,148.2,0.25098]
[1723572737945,20.0,148.29,148.2,0.25098]
[1723572740080,20.0,148.29,148.18,20.0]
[1723572740249,45.0,148.28,148.18,20.0]
[1723572740458,20.0,148.29,148.18,20.0]
[1723572741361,20.0,148.29,148.19,0.25098]
[1723572741655,20.0,148.29,148.2,0.25098]
[1723572742265,20.0,148.29,148.21,0.25098]
[1723572742466,20.0,148.31,148.22,0.25098]
[1723572742757,69.54,148.3,148.22,0.12549]
[1723572743183,20.0,148.29,148.21,0.12549]
[1723572743379,20.0,148.29,148.21,1.47459407]
[1723572743597,20.0,148.29,148.22,0.12549]
[1723572743966,20.0,148.29,148.22,10.48739]
[1723572745169,45.0,148.3,148.23,1.34892204]
[1723572745375,45.0,148.31,148.22,10.48739]
[1723572745583,20.0,148.3,148.22,11.83585825]
[1723572746287,20.0,148.3,148.22,10.48739]
[1723572746676,20.0,148.3,148.23,0.12549]
[1723572751197,45.0,148.31,148.23,0.12549]
[1723572752095,0.8335754,148.32,148.24,0.12549]
[1723572752277,0.8335754,148.32,148.24,0.37647]
[1723572752475,16.5335,148.29,148.22,10.3619]
[1723572752796,9.79,148.27,148.22,10.3619]
[1723572753996,24.49,148.29,148.22,10.3619]
[1723572754195,6.7434,148.3,148.22,10.3619]
[1723572754399,69.49,148.29,148.22,10.3619]
[1723572758368,24.61549,148.31,148.22,10.3619]
[1723572758572,24.49,148.31,148.22,10.3619]
[1723572758767,20.0,148.3,148.22,10.3619]
[1723572762194,69.49,148.29,148.22,10.3619]
[1723572762875,31.2364,148.23,148.18,10.3619]
[1723572763095,24.61549,148.26,148.14,16.7949]
[1723572763096,31.2371,148.21,148.14,16.7949]
[1723572763292,0.12549,148.24,148.14,16.7949]
[1723572763534,24.49,148.22,148.14,16.7949]
[1723572763692,65.0,148.21,148.14,16.7949]
[1723572764314,24.49,148.22,148.14,16.7949]
[1723572764515,24.49,148.26,148.15,0.50196]
[1723572764698,65.0,148.25,148.15,0.50196]
[1723572764903,31.2359,148.24,148.15,0.12549]
[1723572765120,24.49,148.22,148.14,16.7949]
[1723572765327,45.0,148.21,148.14,16.7949]
[1723572766220,24.49,148.2,148.14,16.7949]
[1723572766893,45.0,148.21,148.14,16.7949]
[1723572768121,24.49,148.22,148.14,16.7949]
[1723572768421,45.0,148.21,148.14,16.7949]
[1723572770321,24.49,148.22,148.14,16.7949]
[1723572770716,45.0,148.21,148.14,16.7949]
[1723572771437,31.238,148.2,148.14,10.3619]
[1723572771604,24.49,148.18,148.14,10.3619]
[1723572772019,24.49,148.2,148.14,10.3619]
[1723572772323,45.0,148.19,148.14,10.3619]
[1723572772730,24.49,148.2,148.14,10.3619]
[1723572772914,39.5876,148.22,148.14,10.3619]
[1723572773124,20.0,148.21,148.14,10.3619]
[1723572773445,27.05394037,148.21,148.14,10.3619]
[1723572775739,24.49,148.2,148.14,10.3619]
[1723572775922,9.81,148.18,148.14,10.3619]
[1723572776318,6.7481,148.19,148.14,10.3619]
[1723572776538,9.81,148.16,148.14,10.3619]
[1723572777328,45.12549,148.15,148.1,6.4989]
[1723572777528,9.81,148.11,148.1,6.4989]
[1723572777832,54.81,148.11,148.1,6.4989]
[1723572778033,76.43719,148.11,148.1,6.4989]
[1723572778239,96.68817,148.11,147.97,24.56]
[1723572778558,65.0,148.1,147.97,24.56]
[1723572779050,65.0,148.1,147.97,44.56]
[1723572779427,65.0,148.1,147.98,20.0]
[1723572780156,65.0,148.1,147.99,0.12549]
[1723572781033,65.0,148.1,147.98,0.12549]
[1723572781228,65.0,148.1,147.95,20.0]
[1723572781229,24.56,148.08,147.95,44.56]
[1723572781440,24.56,148.06,147.95,24.56]
[1723572781646,24.56,148.08,147.96,20.0]
[1723572781841,45.0,148.07,147.96,20.0]
[1723572782547,45.0,148.07,147.96,0.12549]
[1723572782746,45.0,148.07,147.96,45.50196]
[1723572782964,24.56,148.06,147.96,45.50196]
[1723572783127,24.56,148.06,147.96,0.50196]
[1723572783326,24.56,148.06,147.98,0.12549]
[1723572783528,7.06081459,148.05,147.96,20.0]
[1723572783727,7.06081459,148.05,147.95,20.0]
[1723572783950,7.06081459,148.05,147.94,20.0]
[1723572784941,7.06081459,148.05,147.95,0.25098]
[1723572785346,7.06081459,148.05,147.97,0.12549]
[1723572785557,7.06081459,148.05,147.97,0.25098]
[1723572785752,7.06081459,148.05,147.98,0.12549]
[1723572787865,45.0,148.07,147.99,0.12549]
[1723572788151,52.06093472,148.07,147.99,0.25098]
[1723572791654,52.06093472,148.07,147.96,20.0]
[1723572791837,52.06093472,148.07,147.97,0.12549]
[1723572793164,52.06093472,148.07,147.97,0.50196]
[1723572794145,52.06093472,148.07,147.97,45.50196]
[1723572794457,45.0,148.07,147.97,0.50196]
[1723572794656,20.0,148.06,147.97,0.50196]
[1723572795337,26.754,148.06,147.97,0.50196]
[1723572795539,20.0,148.06,147.97,0.50196]
[1723572798462,44.56,148.06,147.97,0.50196]
[1723572799961,16.88739264,148.05,147.97,0.50196]
[1723572801803,7.05739264,148.05,147.97,0.50196]
[1723572801956,7.05739264,148.05,148.02,9.83]
[1723572802151,9.83,148.11,148.03,0.25098]
[1723572802355,39.32,148.19,148.04,9.83]
[1723572802356,9.83,148.13,148.04,9.83]
[1723572802657,9.83,148.13,148.05,0.37647]
[1723572802857,9.83,148.13,148.05,30.37647]
[1723572803666,20.0,148.12,148.05,30.37647]
[1723572804317,9.83,148.15,148.06,9.95549]
[1723572804603,9.83,148.15,148.07,0.12549]
[1723572804900,9.83,148.15,148.07,0.25098]
[1723572805188,6.0387,148.14,148.07,0.12549]
[1723572805390,6.0387,148.14,148.07,0.25098]
[1723572805589,6.0387,148.14,148.07,30.25098]
[1723572805903,22.7036,148.14,148.07,30.25098]
[1723572808698,22.7036,148.14,148.07,30.12549]
[1723572810123,22.7036,148.14,148.07,0.12549]
[1723572810307,22.7036,148.14,148.06,0.37647]
[1723572811189,22.7036,148.14,148.07,30.0]
[1723572811889,24.53,148.13,148.07,30.0]
[1723572812132,45.0,148.12,148.07,30.0]
[1723572812289,24.53,148.09,147.98,24.53]
[1723572812607,24.53,148.09,147.99,30.0]
[1723572813623,6.4455,148.07,147.99,30.0]
[1723572813921,16.6517,148.06,147.99,30.0]
[1723572816289,69.53,148.05,147.99,30.0]
[1723572816508,31.2854,148.03,147.99,30.0]
[1723572816720,6.4811,148.02,147.93,0.338]
[1723572816914,51.4811,148.02,147.94,30.0]
[1723572817118,16.2758,148.01,147.94,30.0]
[1723572818620,16.2758,148.01,147.95,0.12549]
[1723572818916,16.2758,148.01,147.95,0.37647]
[1723572819421,16.2758,148.01,147.95,0.25098]
[1723572820504,16.2758,148.01,147.96,0.12549]
[1723572820715,16.2758,148.01,147.95,0.25098]
[1723572822318,16.2758,148.01,147.95,30.25098]
[1723572827928,16.2758,148.01,147.95,0.25098]
[1723572828099,16.2758,148.01,147.95,20.25098]
[1723572830999,16.2758,148.01,147.96,0.25098]
[1723572831321,16.2758,148.01,147.97,0.25098]
[1723572831999,16.2758,148.01,147.96,30.0]
[1723572833799,16.2758,148.01,147.95,20.0]
[1723572834001,9.83,148.0,147.94,20.0]
[1723572834199,9.83,148.0,147.93,0.338]
[1723572834632,6.4607,147.99,147.93,0.338]
[1723572838405,9.83,147.98,147.93,0.338]
[1723572838928,45.0,147.97,147.93,0.338]
[1723572840922,6.4607,147.99,147.93,0.338]
[1723572841725,9.83,148.02,147.93,0.338]
[1723572841907,20.0,148.01,147.93,0.338]
[1723572842433,45.0,148.0,147.93,0.338]
[1723572843521,20.0,148.01,147.93,0.338]
[1723572843722,20.0,148.02,147.94,0.12549]
[1723572844037,65.0,148.02,147.94,0.12549]
[1723572844629,71.7559,148.02,147.94,0.12549]
[1723572845207,71.7559,148.02,147.93,0.338]
[1723572845410,6.7569,148.0,147.93,0.338]
[1723572845651,51.7572,147.99,147.93,0.338]
[1723572845853,65.0,147.99,147.93,0.338]
[1723572846357,71.7572,147.99,147.93,0.338]
[1723572847153,65.0,147.99,147.93,0.338]
[1723572847455,6.7579,147.98,147.93,0.338]
[1723572847631,45.0,147.97,147.93,0.338]
[1723572848439,76.3381,147.97,147.93,0.338]
[1723572849267,69.58,147.97,147.93,0.338]
[1723572850146,0.12549,147.96,147.93,0.338]
[1723572850351,0.25098,147.96,147.93,0.338]
[1723572850549,0.12549,147.94,147.93,0.338]
[1723572850750,45.0,147.94,147.93,0.338]
[1723572851879,45.12549,147.94,147.93,0.338]
[1723572852156,72.26136,147.94,147.93,0.338]
[1723572853168,65.25098,147.94,147.93,0.338]
[1723572853376,72.01038,147.94,147.93,0.338]
[1723572853874,72.26136,147.94,147.93,0.338]